fUST/lending_fUST_20260225
["ID","MTS","AMOUNT","RATE_DAILY","PERIOD"]
[406618621,1771978238655,-299.0,0.00032877,30]
[406618622,1771978238665,-299.0,0.00032877,30]
[406618623,1771978238686,-500.0,0.00032877,5]
[406618624,1771978238705,-500.83948584,0.0003288,2]
[406618625,1771978238723,-156.01,0.000329,7]
[406618626,1771978238735,-165.07,0.000329,7]
[406618627,1771978238744,-168.0,0.00032957,2]
[406618628,1771978238754,-216.4760582,0.00033,120]
[406618629,1771978238764,-541.05693589,0.00033,120]
[406618630,1771978238775,-168.0,0.0003319,7]
[406618631,1771978238785,-451.91476233,0.000332,117]
[406618632,1771978238801,-150.0,0.00033238,2]
[406618633,1771978238810,-1000.0,0.00033425,5]
[406618634,1771978238821,-168.0,0.000335,2]
[406618635,1771978238831,-2500.0,0.000335,4]
[406618636,1771978238840,-168.0,0.00033576,7]
[406618637,1771978238849,-421.02905068,0.0003358,2]
[406618638,1771978238859,-168.0,0.0003358,2]
[406618639,1771978238868,-168.0,0.00033598,7]
[406618640,1771978238878,-744.3517164,0.00033641,2]
[406618641,1771978238887,-178.475489,0.00033674,2]
[406618642,1771978238897,-500.0,0.0003368,2]
[406618643,1771978238907,-352.80688111,0.0003368,2]
[406618644,1771978238917,-500.0,0.0003368,2]
[406618645,1771978238927,-500.0,0.0003368,2]
[406618646,1771978238937,-500.0,0.0003368,2]
[406618647,1771978238947,-500.0,0.0003368,2]
[406618648,1771978238956,-500.0,0.0003368,2]
[406618649,1771978238966,-500.0,0.0003368,2]
[406618650,1771978238975,-500.0,0.0003368,2]
[406618651,1771978238986,-500.0,0.0003368,2]
[406618652,1771978238998,-500.0,0.0003368,2]
[406618653,1771978239008,-500.0,0.0003368,2]
[406618654,1771978239018,-500.0,0.0003368,2]
[406618655,1771978239029,-500.0,0.0003368,2]
[406618656,1771978239039,-500.0,0.0003368,2]
[406618657,1771978239049,-500.0,0.0003368,2]
[406618658,1771978239058,-500.0,0.0003368,2]
[406618659,1771978239068,-500.0,0.0003368,2]
[406618660,1771978239078,-500.0,0.0003368,2]
[406618661,1771978239087,-500.0,0.0003368,2]
[406618662,1771978239097,-500.0,0.0003368,2]
[406618663,1771978239107,-500.0,0.0003368,2]
[406618664,1771978239116,-500.0,0.0003368,2]
[406618665,1771978239126,-500.0,0.0003368,2]
[406618666,1771978239135,-500.0,0.0003368,2]
[406618667,1771978239144,-500.0,0.0003368,2]
[406618668,1771978239154,-500.0,0.0003368,2]
[406618669,1771978239164,-168.0,0.00033683,2]
[406618670,1771978239174,-500.0,0.00033699,7]
[406618671,1771978239184,-472.69444722,0.00033699,7]
[406618672,1771978239194,-449.14956437,0.00033699,7]
[406618673,1771978239203,-12004.0,0.000337,2]
[406618674,1771978239216,-168.0,0.00033704,2]
[406618675,1771978239226,-168.0,0.00033749,2]
[406618676,1771978239235,-168.0,0.0003378,2]
[406618677,1771978239245,-2537.02249303,0.00033933,5]
[406618678,1771978239254,-525.92642689,0.00033973,5]
[406618679,1771978239264,-168.0,0.00034276,2]
[406618680,1771978239273,-600.0,0.00034373,30]
[406618681,1771978239283,-279.621,0.00034399,38]
[406618682,1771978239293,-165.07,0.000344,7]
[406618683,1771978239303,-180.0,0.00034466,69]
[406618684,1771978239312,-168.0,0.00034583,2]
[406618685,1771978239323,-150.0,0.00034726,40]
[406618686,1771978239332,-160.58390182,0.00034781,40]
[406618687,1771978239342,-168.0,0.00034894,120]
[406618688,1771978239351,-168.0,0.00034937,2]
[406618689,1771978239361,-440.57201086,0.00035,40]
[406618690,1771978239371,-161.04094944,0.00035,2]
[406618691,1771978239381,-1286.0,0.00035,120]
[406618692,1771978239390,-6999.0,0.00035,120]
[406618693,1771978239400,-765.0,0.00035023,2]
[406618694,1771978239409,-392.4799895,0.00035337,2]
[406618695,1771978239419,-429.0,0.00035408,2]
[406618696,1771978239429,-7594.06,0.0003542,10]
[406618697,1771978239439,-277.48516146,0.0003542,3]
[406618698,1771978239448,-500.0,0.0003543,120]
[406618699,1771978239458,-500.0,0.0003543,120]
[406618700,1771978239467,-500.0,0.0003543,120]
[406618701,1771978239476,-500.0,0.0003543,120]
[406618702,1771978239486,-500.0,0.0003543,120]
[406618703,1771978239496,-500.0,0.0003543,120]
[406618704,1771978239505,-500.0,0.0003543,120]
[406618705,1771978239514,-500.0,0.0003543,120]
[406618706,1771978239524,-500.0,0.0003543,120]
[406618707,1771978239533,-500.0,0.0003543,120]
[406618708,1771978239548,-500.0,0.0003543,120]
[406618709,1771978239571,-500.0,0.0003543,120]
[406618710,1771978239590,-500.0,0.0003543,120]
[406618711,1771978239600,-500.0,0.0003543,120]
[406618712,1771978239609,-500.0,0.0003543,120]
[406618713,1771978239619,-500.0,0.0003543,120]
[406618714,1771978239628,-500.0,0.0003543,120]
[406618715,1771978239638,-500.0,0.0003543,120]
[406618716,1771978239648,-500.0,0.0003543,120]
[406618717,1771978239657,-500.0,0.0003543,120]
[406618718,1771978239667,-500.0,0.0003543,120]
[406618719,1771978239676,-500.0,0.0003543,120]
[406618720,1771978239686,-500.0,0.0003543,120]
[406618721,1771978239695,-500.0,0.0003543,120]
[406618722,1771978239711,-500.0,0.0003543,120]
[406618723,1771978239721,-500.0,0.0003543,120]
[406618724,1771978239731,-500.0,0.0003543,120]
[406618725,1771978239741,-500.0,0.0003543,120]
[406618726,1771978239750,-500.0,0.0003543,120]
[406618727,1771978239759,-500.0,0.0003543,120]
[406618728,1771978239769,-500.0,0.0003543,120]
[406618729,1771978239780,-500.0,0.0003543,120]
[406618730,1771978239791,-500.0,0.0003543,120]
[406618731,1771978239801,-500.0,0.0003543,120]
[406618732,1771978239810,-500.0,0.0003543,120]
[406618733,1771978239819,-500.0,0.0003543,120]
[406618734,1771978239828,-500.0,0.0003543,120]
[406618735,1771978239838,-500.0,0.0003543,120]
[406618736,1771978239848,-500.0,0.0003543,120]
[406618737,1771978239857,-500.0,0.0003543,120]
[406618738,1771978239866,-500.0,0.0003543,120]
[406618739,1771978239876,-500.0,0.0003543,120]
[406618740,1771978239885,-500.0,0.0003543,120]
[406618741,1771978239894,-500.0,0.0003543,120]
[406618742,1771978239903,-500.0,0.0003543,120]
[406618743,1771978239913,-500.0,0.0003543,120]
[406618744,1771978239922,-500.0,0.0003543,120]
[406618745,1771978239931,-500.0,0.0003543,120]
[406618746,1771978239942,-500.0,0.0003543,120]
[406618747,1771978239951,-500.0,0.0003543,120]
[406618748,1771978239962,-500.0,0.0003543,120]
[406618749,1771978239971,-500.0,0.0003543,120]
[406618750,1771978239981,-500.0,0.0003543,120]
[406618751,1771978239993,-500.0,0.0003543,120]
[406618752,1771978240003,-500.0,0.0003543,120]
[406618753,1771978240013,-500.0,0.0003543,120]
[406618754,1771978240023,-500.0,0.0003543,120]
[406618755,1771978240032,-500.0,0.0003543,120]
[406618756,1771978240041,-500.0,0.0003543,120]
[406618757,1771978240051,-500.0,0.0003543,120]
[406618758,1771978240062,-500.0,0.0003543,120]
[406618759,1771978240071,-500.0,0.0003543,120]
[406618760,1771978240083,-500.0,0.0003543,120]
[406618761,1771978240093,-500.0,0.0003543,120]
[406618762,1771978240103,-500.0,0.0003543,120]
[406618763,1771978240113,-500.0,0.0003543,120]
[406618764,1771978240123,-500.0,0.0003543,120]
[406618765,1771978240132,-500.0,0.0003543,120]
[406618766,1771978240142,-500.0,0.0003543,120]
[406618767,1771978240151,-500.0,0.0003543,120]
[406618768,1771978240160,-500.0,0.0003543,120]
[406618769,1771978240174,-500.0,0.0003543,120]
[406618770,1771978240183,-500.0,0.0003543,120]
[406618771,1771978240192,-500.0,0.0003543,120]
[406618772,1771978240201,-500.0,0.0003543,120]
[406618773,1771978240210,-500.0,0.0003543,120]
[406618774,1771978240220,-500.0,0.0003543,120]
[406618775,1771978240229,-500.0,0.0003543,120]
[406618776,1771978240239,-500.0,0.0003543,120]
[406618777,1771978240248,-500.0,0.0003543,120]
[406618778,1771978240257,-500.0,0.0003543,120]
[406618779,1771978240267,-500.0,0.0003543,120]
[406618781,1771978240277,-500.0,0.0003543,120]
[406618783,1771978240286,-500.0,0.0003543,120]
[406618785,1771978240295,-500.0,0.0003543,120]
[406618787,1771978240304,-500.0,0.0003543,120]
[406618789,1771978240314,-500.0,0.0003543,120]
[406618791,1771978240323,-500.0,0.0003543,120]
[406618793,1771978240332,-500.0,0.0003543,120]
[406618795,1771978240341,-500.0,0.0003543,120]
[406618797,1771978240350,-500.0,0.0003543,120]
[406618799,1771978240359,-500.0,0.0003543,120]
[406618801,1771978240368,-500.0,0.0003543,120]
[406618803,1771978240377,-500.0,0.0003543,120]
[406618805,1771978240387,-500.0,0.0003543,120]
[406618807,1771978240396,-500.0,0.0003543,120]
[406618809,1771978240406,-500.0,0.0003543,120]
[406618811,1771978240417,-727.0,0.00035466,2]
[406618813,1771978240427,-451.91476233,0.00035584,120]
[406618815,1771978240436,-1000.0,0.00035616,120]
[406618817,1771978240446,-156.01,0.000357,7]
[406618819,1771978240455,-165.07,0.000359,7]
[406618821,1771978240464,-2500.0,0.00036,5]
[406618823,1771978240473,-243.64281423,0.00036,30]
[406618825,1771978240483,-206.24255779,0.0003621,2]
[406618827,1771978240492,-268.24729564,0.0003624,2]
[406618829,1771978240502,-2497.36645314,0.0003642,3]
[406618831,1771978240511,-52077.13763861,0.0003643,2]
[406618833,1771978240525,-1479.5930893,0.0003643,2]
[406618835,1771978240536,-2202.51799299,0.0003643,2]
[406619027,1771978242682,-101815.096128,0.0003643,2]
[406619041,1771978242804,161.994617,0.00041944,120]
[406619055,1771978242928,161.994617,0.00041944,120]
[406619069,1771978243060,161.994617,0.00041944,120]
[406619085,1771978243202,161.994617,0.00041944,120]
[406619099,1771978243325,161.994617,0.00041944,120]
[406619121,1771978243520,161.994617,0.00041944,120]
[406619136,1771978243649,161.994617,0.00041944,120]
[406619164,1771978243910,161.994617,0.00041944,120]
[406619353,1771978245886,-500.0,0.00034726,40]
[406619355,1771978245895,-500.0,0.00034726,40]
[406619357,1771978245905,-500.0,0.00034781,40]
[406619359,1771978245914,-500.0,0.00034781,40]
[406619361,1771978245926,-500.0,0.00034836,40]
[406619363,1771978245936,-302.4989361,0.00034836,40]
[406619365,1771978245946,-500.0,0.0003489,40]
[406619367,1771978245956,-500.0,0.00034945,40]
[406619369,1771978245965,-500.0,0.00035,40]
[406619372,1771978245975,-500.0,0.00035055,40]
[406619374,1771978245985,-500.0,0.0003511,40]
[406619375,1771978245999,-500.0,0.00035164,40]
[406619378,1771978246008,-500.0,0.00035219,40]
[406619379,1771978246017,-500.0,0.00035274,40]
[406619382,1771978246027,-500.0,0.00035329,40]
[406619383,1771978246037,-8440.3172629,0.0003643,2]
[406619438,1771978246535,161.994617,0.00041944,120]
[406619452,1771978246656,161.994617,0.00041944,120]
[406619465,1771978246773,161.994617,0.00041944,120]
[406619482,1771978246926,161.994617,0.00041944,120]
[406619495,1771978247035,161.994617,0.00041944,120]
[406619518,1771978247245,161.994617,0.00041944,120]
[406619530,1771978247345,161.994617,0.00041944,120]
[406619544,1771978247455,161.994617,0.00041944,120]
[406619568,1771978247658,161.994617,0.00041944,120]
[406619667,1771978248575,-500.0,0.00035384,40]
[406619669,1771978248584,-199.46233384,0.00035438,40]
[406619671,1771978248593,-88085.15131132,0.0003643,2]
[406619674,1771978248605,-140586.45497688,0.0003643,2]
[406619676,1771978248615,-206.53651,0.000365,120]
[406619678,1771978248624,-4811.11,0.000365,2]
[406619680,1771978248633,-315.0,0.00036817,120]
[406619682,1771978248642,-217.0,0.00036817,120]
[406619683,1771978248651,-279.924174,0.00036986,31]
[406619685,1771978248660,-279.924174,0.00036986,31]
[406619688,1771978248671,-279.924174,0.00036986,31]
[406619690,1771978248680,-279.924174,0.00036986,31]
[406619691,1771978248689,-279.924174,0.00036986,31]
[406619693,1771978248699,-279.924174,0.00036986,31]
[406619695,1771978248708,-279.924174,0.00036986,31]
[406619697,1771978248717,-279.924174,0.00036986,31]
[406619699,1771978248726,-279.924174,0.00036986,31]
[406619701,1771978248735,-279.924174,0.00036986,31]
[406619703,1771978248744,-279.924174,0.00036986,31]
[406619705,1771978248754,-279.924174,0.00036986,31]
[406619707,1771978248763,-279.924174,0.00036986,31]
[406619709,1771978248772,-279.924174,0.00036986,31]
[406619711,1771978248781,-279.924174,0.00036986,31]
[406619713,1771978248790,-279.924174,0.00036986,31]
[406619715,1771978248799,-279.924174,0.00036986,31]
[406619717,1771978248808,-279.924174,0.00036986,31]
[406619719,1771978248818,-279.924174,0.00036986,31]
[406619721,1771978248827,-279.924178,0.00036986,31]
[406619723,1771978248836,-654.5098438,0.00037,8]
[406619726,1771978248846,-165.07,0.00037,7]
[406619728,1771978248855,-1007.34019501,0.00037127,15]
[406619729,1771978248864,-484.81094372,0.0003715,30]
[406619731,1771978248873,-765.0,0.0003726,7]
[406619733,1771978248883,-681.0,0.00037389,2]
[406619736,1771978248894,-449.31118361,0.000375,120]
[406619738,1771978248903,-385.28411,0.000376,120]
[406619740,1771978248913,-200.0,0.000376,120]
[406619742,1771978248923,-168.0,0.00037668,2]
[406619744,1771978248932,-168.0,0.00037736,7]
[406619746,1771978248941,-177.0,0.00037753,103]
[406619748,1771978248951,-959.7575,0.00037755,2]
[406619750,1771978248960,-2084.1747,0.00037755,2]
[406619752,1771978248968,-720.0,0.0003781,30]
[406619754,1771978248977,-270.02445553,0.0003784,120]
[406619756,1771978248987,-156.01,0.000379,7]
[406619758,1771978249000,-165.07,0.00038,7]
[406619759,1771978249009,-403.33938556,0.00038,120]
[406619768,1771978249137,-681.0,0.00038037,120]
[406619769,1771978249152,-4811.11,0.000381,2]
[406619770,1771978249162,-681.0,0.00038121,7]
[406619771,1771978249172,-378.89,0.00038135,2]
[406619772,1771978249181,-168.0,0.00038155,2]
[406619773,1771978249191,-681.0,0.00038209,2]
[406619774,1771978249200,-1664.91096876,0.0003824,3]
[406619775,1771978249210,-285679.2765,0.00038244,2]
[406619776,1771978249219,-277.48516146,0.00038346,3]
[406619777,1771978249228,-1000.0,0.00038356,120]
[406619779,1771978249237,-226.537304,0.00038356,120]
[406619781,1771978249247,-226.537304,0.00038356,120]
[406619783,1771978249256,-226.537304,0.00038356,120]
[406619785,1771978249265,-226.537304,0.00038356,120]
[406619787,1771978249274,-226.537304,0.00038356,120]
[406619789,1771978249284,-226.537304,0.00038356,120]
[406619791,1771978249292,-226.537304,0.00038356,120]
[406619793,1771978249301,-226.537304,0.00038356,120]
[406619795,1771978249310,-226.537304,0.00038356,120]
[406619797,1771978249320,-226.537304,0.00038356,120]
[406619799,1771978249330,-226.537304,0.00038356,120]
[406619801,1771978249339,-226.537304,0.00038356,120]
[406619803,1771978249348,-226.537304,0.00038356,120]
[406619805,1771978249358,-226.537304,0.00038356,120]
[406619807,1771978249367,-226.537304,0.00038356,120]
[406619809,1771978249376,-226.537304,0.00038356,120]
[406619811,1771978249386,-226.537304,0.00038356,120]
[406619813,1771978249395,-226.537304,0.00038356,120]
[406619815,1771978249404,-226.537304,0.00038356,120]
[406619817,1771978249413,-226.53730812,0.00038356,120]
[406619819,1771978249423,-328.12819,0.00038356,120]
[406619821,1771978249433,-328.12819,0.00038356,120]
[406619823,1771978249442,-328.12819,0.00038356,120]
[406619825,1771978249451,-328.12819,0.00038356,120]
[406619827,1771978249461,-328.12819,0.00038356,120]
[406619829,1771978249470,-328.12819,0.00038356,120]
[406619831,1771978249479,-328.12819,0.00038356,120]
[406619833,1771978249488,-328.12819,0.00038356,120]
[406619835,1771978249496,-328.12819,0.00038356,120]
[406619837,1771978249505,-328.12819,0.00038356,120]
[406619839,1771978249514,-328.12819,0.00038356,120]
[406619841,1771978249523,-328.12819,0.00038356,120]
[406619843,1771978249532,-328.12819,0.00038356,120]
[406619845,1771978249541,-328.12819,0.00038356,120]
[406619847,1771978249550,-328.12819,0.00038356,120]
[406619849,1771978249560,-328.12819,0.00038356,120]
[406619851,1771978249569,-328.12819,0.00038356,120]
[406619853,1771978249577,-328.12819,0.00038356,120]
[406619855,1771978249586,-328.12819,0.00038356,120]
[406619857,1771978249595,-328.1281896,0.00038356,120]
[406619859,1771978249604,-151.0,0.00038356,120]
[406619861,1771978249614,-151.0,0.00038356,120]
[406619863,1771978249623,-151.0,0.00038356,120]
[406619865,1771978249632,-151.0,0.00038356,120]
[406619867,1771978249641,-151.0,0.00038356,120]
[406619869,1771978249650,-256.8569,0.00038356,120]
[406619871,1771978249658,-151.0,0.00038356,120]
[406619873,1771978249668,-151.0,0.00038356,120]
[406619875,1771978249678,-151.0,0.00038356,120]
[406619877,1771978249687,-151.0,0.00038356,120]
[406619879,1771978249696,-151.0,0.00038356,120]
[406619881,1771978249705,-151.0,0.00038356,120]
[406619883,1771978249713,-151.0,0.00038356,120]
[406619885,1771978249726,-151.0,0.00038356,120]
[406619887,1771978249735,-151.0,0.00038356,120]
[406619889,1771978249744,-151.0,0.00038356,120]
[406619891,1771978249754,-151.0,0.00038356,120]
[406619893,1771978249763,-151.0,0.00038356,120]
[406619895,1771978249772,-151.0,0.00038356,120]
[406619897,1771978249781,-151.0,0.00038356,120]
[406619899,1771978249790,-151.0,0.00038356,120]
[406619901,1771978249799,-151.0,0.00038356,120]
[406619903,1771978249807,-151.0,0.00038356,120]
[406619905,1771978249816,-151.0,0.00038356,120]
[406619907,1771978249826,-151.0,0.00038356,120]
[406619909,1771978249835,-170.61018,0.00038356,120]
[406619911,1771978249844,-151.0,0.00038356,120]
[406619913,1771978249853,-151.0,0.00038356,120]
[406619915,1771978249862,-151.0,0.00038356,120]
[406619917,1771978249871,-151.0,0.00038356,120]
[406619919,1771978249881,-151.0,0.00038356,120]
[406619921,1771978249890,-222.634491,0.00038356,120]
[406619923,1771978249899,-151.0,0.00038356,120]
[406619925,1771978249909,-151.0,0.00038356,120]
[406619927,1771978249919,-151.0,0.00038356,120]
[406619929,1771978249929,-151.0,0.00038356,120]
[406619931,1771978249939,-151.0,0.00038356,120]
[406619933,1771978249948,-151.0,0.00038356,120]
[406619935,1771978249957,-151.0,0.00038356,120]
[406619937,1771978249966,-151.0,0.00038356,120]
[406619939,1771978249975,-151.0,0.00038356,120]
[406619941,1771978249985,-153.968188,0.00038356,120]
[406619943,1771978249997,-151.0,0.00038356,120]
[406619945,1771978250006,-151.0,0.00038356,120]
[406619947,1771978250016,-151.0,0.00038356,120]
[406619949,1771978250025,-151.0,0.00038356,120]
[406619951,1771978250035,-151.0,0.00038356,120]
[406619953,1771978250045,-151.0,0.00038356,120]
[406619955,1771978250054,-151.0,0.00038356,120]
[406619957,1771978250063,-151.0,0.00038356,120]
[406619959,1771978250073,-151.0,0.00038356,120]
[406619960,1771978250083,-151.0,0.00038356,120]
[406619962,1771978250092,-151.0,0.00038356,120]
[406619964,1771978250101,-151.0,0.00038356,120]
[406619967,1771978250111,-263.671619,0.00038356,120]
[406619968,1771978250120,-151.0,0.00038356,120]
[406619971,1771978250130,-151.0,0.00038356,120]
[406619972,1771978250140,-151.0,0.00038356,120]
[406619975,1771978250150,-151.0,0.00038356,120]
[406619977,1771978250159,-151.0,0.00038356,120]
[406619978,1771978250169,-151.0,0.00038356,120]
[406619980,1771978250178,-151.0,0.00038356,120]
[406619982,1771978250188,-188.27176,0.00038356,120]
[406619985,1771978250198,-151.0,0.00038356,120]
[406619987,1771978250213,-196.174889,0.00038356,120]
[406619989,1771978250222,-196.174889,0.00038356,120]
[406619991,1771978250231,-196.174889,0.00038356,120]
[406619993,1771978250240,-196.174889,0.00038356,120]
[406619995,1771978250249,-196.174889,0.00038356,120]
[406619997,1771978250258,-151.0,0.00038356,120]
[406619999,1771978250268,-196.174889,0.00038356,120]
[406620001,1771978250277,-151.0,0.00038356,120]
[406620003,1771978250286,-151.0,0.00038356,120]
[406620005,1771978250295,-196.174889,0.00038356,120]
[406620007,1771978250304,-151.0,0.00038356,120]
[406620009,1771978250313,-196.174889,0.00038356,120]
[406620011,1771978250323,-196.174889,0.00038356,120]
[406620013,1771978250332,-260.502882,0.00038356,120]
[406620015,1771978250341,-196.174889,0.00038356,120]
[406620017,1771978250350,-196.174889,0.00038356,120]
[406620019,1771978250360,-196.174889,0.00038356,120]
[406620021,1771978250370,-196.174889,0.00038356,120]
[406620023,1771978250379,-196.174889,0.00038356,120]
[406620025,1771978250388,-196.174889,0.00038356,120]
[406620027,1771978250397,-196.174889,0.00038356,120]
[406620029,1771978250406,-196.174889,0.00038356,120]
[406620031,1771978250415,-196.174889,0.00038356,120]
[406620032,1771978250425,-196.174889,0.00038356,120]
[406620034,1771978250434,-196.174881,0.00038356,120]
[406620036,1771978250443,-151.0,0.00038356,120]
[406620038,1771978250453,-151.0,0.00038356,120]
[406620040,1771978250462,-151.0,0.00038356,120]
[406620042,1771978250472,-151.0,0.00038356,120]
[406620044,1771978250481,-276.524773,0.00038356,120]
[406620046,1771978250490,-151.0,0.00038356,120]
[406620048,1771978250499,-234.823737,0.00038356,120]
[406620050,1771978250509,-151.0,0.00038356,120]
[406620052,1771978250517,-151.0,0.00038356,120]
[406620054,1771978250527,-186.378398,0.00038356,120]
[406620056,1771978250536,-151.0,0.00038356,120]
[406620058,1771978250545,-175.308908,0.00038356,120]
[406620060,1771978250555,-211.197714,0.00038356,120]
[406620063,1771978250564,-211.197714,0.00038356,120]
[406620065,1771978250574,-211.197714,0.00038356,120]
[406620067,1771978250584,-211.197714,0.00038356,120]
[406620069,1771978250594,-211.197714,0.00038356,120]
[406620070,1771978250603,-211.197714,0.00038356,120]
[406620073,1771978250613,-211.197714,0.00038356,120]
[406620075,1771978250623,-211.197714,0.00038356,120]
[406620077,1771978250633,-211.197714,0.00038356,120]
[406620078,1771978250642,-211.197714,0.00038356,120]
[406620081,1771978250652,-211.197714,0.00038356,120]
[406620083,1771978250662,-211.197714,0.00038356,120]
[406620084,1771978250671,-211.197714,0.00038356,120]
[406620086,1771978250681,-211.197714,0.00038356,120]
[406620088,1771978250691,-211.197714,0.00038356,120]
[406620090,1771978250701,-211.197714,0.00038356,120]
[406620093,1771978250711,-211.197714,0.00038356,120]
[406620094,1771978250720,-211.197714,0.00038356,120]
[406620097,1771978250730,-211.197714,0.00038356,120]
[406620099,1771978250739,-211.197708,0.00038356,120]
[406620100,1771978250749,-151.0,0.00038356,120]
[406620102,1771978250759,-151.0,0.00038356,120]
[406620104,1771978250770,-151.0,0.00038356,120]
[406620106,1771978250779,-151.0,0.00038356,120]
[406620108,1771978250789,-176.828251,0.00038356,120]
[406620110,1771978250799,-2084.1747,0.00038384,2]
[406620112,1771978250809,-421.02905061,0.00038397,2]
[406620114,1771978250818,-839.25,0.000384,7]
[406620116,1771978250827,-429.0,0.00038408,2]
[406620118,1771978250837,-727.0,0.00038466,2]
[406620119,1771978250848,-217.0,0.00038658,120]
[406620121,1771978250857,-1694.7012,0.00038699,2]
[406620123,1771978250867,-959.7575,0.00038699,2]
[406620125,1771978250876,-277.48516146,0.00038824,3]
[406620126,1771978250885,-3757.50117189,0.00038834,2]
[406620128,1771978250894,-1501.12223313,0.00039,30]
[406620130,1771978250904,-194.71843394,0.00039,2]
[406620132,1771978250913,-861.26993527,0.00039,120]
[406620134,1771978250923,-2084.1747,0.00039014,2]
[406620136,1771978250933,-250.77078804,0.00039156,120]
[406620138,1771978250943,-959.7575,0.00039643,2]
[406620139,1771978250952,-2084.1747,0.00039643,2]
[406620141,1771978250961,-258.11651258,0.0003966,2]
[406620143,1771978250971,-277.48516146,0.0003977,3]
[406620145,1771978250980,-37000.0,0.0003978,20]
[406620147,1771978250995,-28486.09311136,0.0003978,25]
[406620148,1771978251005,-269.80392618,0.000399,30]
[406620150,1771978251013,-279.0,0.0004,7]
[406620152,1771978251023,-744.3517164,0.0004,3]
[406620154,1771978251034,-2678.71935174,0.0004,2]
[406620156,1771978251043,-500.0,0.0004,2]
[406620158,1771978251053,-1399.0,0.0004,120]
[406620160,1771978251064,-227.11553223,0.0004,120]
[406620162,1771978251073,-239.11018883,0.0004,30]
[406620163,1771978251082,-167.99752871,0.0004,120]
[406620165,1771978251091,-202.87258483,0.0004,30]
[406620167,1771978251101,-264.82741611,0.0004,120]
[406620169,1771978251111,-230.94828689,0.0004,120]
[406620171,1771978251120,-210.41617118,0.0004,2]
[406620172,1771978251129,-200.0,0.0004,2]
[406620174,1771978251138,-500.0,0.0004,120]
[406620176,1771978251147,-4811.11,0.0004,2]
[406620178,1771978251157,-260.42,0.0004,120]
[406620179,1771978251166,-209.45,0.0004,120]
[406620196,1771978251328,-418.98,0.0004,120]
[406620198,1771978251354,-573.6549,0.000401,30]
[406620200,1771978251363,-156.01,0.000401,7]
[406620202,1771978251372,-300.2999,0.000401,60]
[406620204,1771978251381,-273.85819832,0.000401,120]
[406620206,1771978251391,-502.52432325,0.00040636,30]
[406620207,1771978251400,-253.0,0.0004069,2]
[406620209,1771978251409,-277.48516146,0.0004079,3]
[406620211,1771978251418,-176.8555,0.0004082,120]
[406620213,1771978251427,-500.0,0.0004095,120]
[406620215,1771978251436,-500.0,0.0004095,120]
[406620217,1771978251445,-500.0,0.0004095,120]
[406620218,1771978251455,-500.0,0.0004095,120]
[406620219,1771978251465,-500.0,0.0004095,120]
[406620220,1771978251474,-500.0,0.0004095,120]
[406620221,1771978251484,-500.0,0.0004095,120]
[406620222,1771978251493,-500.0,0.0004095,120]